bitfinex/quotes_BTCUSD_20250812
["timestamp","ask_amount","ask_price","bid_price","bid_amount"]
[1755041642460,0.65935245,119990.0,119980.0,0.68479659]
[1755041643478,0.65935245,119990.0,119980.0,0.68169659]
[1755041644450,0.65935245,119990.0,119980.0,0.68492659]
[1755041648033,0.65935245,119990.0,119980.0,0.55441659]
[1755041648263,1.15292435,119990.0,119980.0,0.40228659]
[1755041648467,0.66233245,119990.0,119980.0,0.52956659]
[1755041649022,0.68733145,119990.0,119980.0,0.52956659]
[1755041649596,0.68733145,119990.0,119980.0,0.72856659]
[1755041650098,0.6958463,119990.0,119980.0,0.72756659]
[1755041650847,1.1864382,119990.0,119980.0,0.60028659]
[1755041651049,1.28661047,119990.0,119980.0,0.20028659]
[1755041651432,1.28661047,119990.0,119980.0,0.32756659]
[1755041652259,1.28661047,119990.0,119980.0,0.52756659]
[1755041652499,1.28761047,119990.0,119980.0,0.52756659]
[1755041653807,0.79701857,119990.0,119980.0,0.52756659]
[1755041654333,0.79801857,119990.0,119980.0,0.52756659]
[1755041661050,0.30444667,119990.0,119980.0,0.52756659]
[1755041661392,0.78444372,119990.0,119980.0,0.40550659]
[1755041661628,0.78444372,119990.0,119980.0,0.53278659]
[1755041662177,0.75944472,119990.0,119980.0,0.53278659]
[1755041663118,0.26885282,119990.0,119980.0,0.53278659]
[1755041663314,0.75944472,119990.0,119980.0,0.53278659]
[1755041666066,0.67672147,119990.0,119980.0,0.53278659]
[1755041666472,0.67672147,119990.0,119980.0,0.40550659]
[1755041666705,0.67672147,119990.0,119980.0,0.53278659]
[1755041668559,0.67672147,119990.0,119980.0,0.40550659]
[1755041668801,0.67672147,119990.0,119980.0,0.53278659]
[1755041669727,0.67672147,119990.0,119980.0,0.40550659]
[1755041669935,0.67672147,119990.0,119980.0,0.53278659]
[1755041670719,0.18612957,119990.0,119980.0,0.53278659]
[1755041670878,0.67672147,119990.0,119980.0,0.53278659]
[1755041671679,0.18612957,119990.0,119980.0,0.40550659]
[1755041671893,0.67672147,119990.0,119980.0,0.53278659]
[1755041673752,0.67672147,119990.0,119980.0,0.53274659]
[1755041676587,0.18612957,119990.0,119980.0,0.53274659]
[1755041676774,0.67672147,119990.0,119980.0,0.53286659]
[1755041677399,0.18612957,119990.0,119980.0,0.40550659]
[1755041677605,0.18612957,119990.0,119980.0,0.57220103]
[1755041677803,0.16868055,119990.0,119980.0,0.69956103]
[1755041678165,0.002,119990.0,119980.0,0.65492428]
[1755041678359,0.001,119990.0,119980.0,0.78236428]
[1755041678584,0.001,119990.0,119980.0,0.65492428]
[1755041678786,0.001,119990.0,119980.0,0.78244428]
[1755041679114,0.001,119990.0,119980.0,0.78344428]
[1755041679515,0.001,119990.0,119980.0,0.78244428]
[1755041679717,0.001,119990.0,119980.0,0.65692428]
[1755041679954,0.001,119990.0,119980.0,0.78444428]
[1755041680363,0.65725891,120000.0,119990.0,0.66668055]
[1755041680563,0.65725891,120000.0,119990.0,0.79621055]
[1755041680794,0.16666701,120000.0,119990.0,0.79939055]
[1755041681320,0.16666701,120000.0,119990.0,0.63271]
[1755041681831,0.16666701,120000.0,119990.0,0.63371]
[1755041683684,0.16666701,120000.0,119990.0,0.63471]
[1755041685137,0.16666701,120000.0,119990.0,0.50719]
[1755041685388,0.60282989,120000.0,119990.0,0.63467]
[1755041686041,0.16666701,120000.0,119990.0,0.50719]
[1755041686267,0.60282989,120000.0,119990.0,0.63463]
[1755041686789,0.60491989,120000.0,119990.0,0.502]
[1755041686914,0.60491989,120000.0,119990.0,0.352]
[1755041687184,1.06157179,120000.0,119990.0,0.4794]
[1755041687416,0.62236891,120000.0,119990.0,0.4794]
[1755041687870,0.62540891,120000.0,119990.0,0.4794]
[1755041690560,0.18924603,120000.0,119990.0,0.4794]
[1755041690772,0.62540891,120000.0,119990.0,0.4794]
[1755041691987,1.06157179,120000.0,119990.0,0.4794]
[1755041692187,0.62540891,120000.0,119990.0,0.4794]
[1755041692385,0.62540891,120000.0,119990.0,0.352]
[1755041692597,0.62236891,120000.0,119990.0,0.47932]
[1755041692802,0.62236891,120000.0,119990.0,0.35719]
[1755041692803,0.18620603,120000.0,119990.0,0.35719]
[1755041693015,0.62027891,120000.0,119990.0,0.48455]
[1755041693244,0.18411603,120000.0,119990.0,0.48455]
[1755041693449,0.62027891,120000.0,119990.0,0.48455]
[1755041695581,0.16666701,120000.0,119990.0,0.63455]
[1755041697333,0.60282989,120000.0,119990.0,0.63455]
[1755041697762,0.16666701,120000.0,119990.0,0.50719]
[1755041698154,0.16666701,120000.0,119990.0,0.63471]
[1755041699368,0.60282989,120000.0,119990.0,0.63471]
[1755041700130,0.16666701,120000.0,119990.0,0.63471]
[1755041700973,0.16666701,120000.0,119990.0,0.63475]
[1755041701691,0.16666701,120000.0,119990.0,0.63479]
[1755041702344,0.60282989,120000.0,119990.0,0.63479]
[1755041703066,0.1749854,120010.0,119990.0,0.7565938]
[1755041703244,0.1749854,120010.0,120000.0,0.37400332]
[1755041703484,0.17498471,120020.0,120010.0,0.5]
[1755041703637,0.62859661,120020.0,120010.0,0.6276]
[1755041703851,0.62859661,120020.0,120010.0,0.50515]
[1755041704037,0.62859661,120020.0,120010.0,0.63287]
[1755041704999,0.19243373,120020.0,120010.0,0.63287]
[1755041705203,0.62859661,120020.0,120010.0,0.63287]
[1755041706020,0.19343373,120020.0,120010.0,0.63287]
[1755041706147,0.63059661,120020.0,120010.0,0.64136236]
[1755041708265,0.19443373,120020.0,120010.0,0.64136236]
[1755041708494,0.63059661,120020.0,120010.0,0.64136236]
[1755041709117,0.63059661,120020.0,120010.0,0.68029513]
[1755041709118,0.17698471,120020.0,120010.0,0.68029513]
[1755041709548,0.17698471,120020.0,120010.0,0.64148236]
[1755041709985,0.17598471,120020.0,120010.0,0.64148236]
[1755041710272,0.17598471,120020.0,120010.0,0.80913513]
[1755041710799,0.17498471,120020.0,120010.0,0.80913513]
[1755041711190,0.17498471,120020.0,120010.0,0.81013513]
[1755041711405,0.17498471,120020.0,120010.0,0.64348236]
[1755041713198,0.61114759,120020.0,120010.0,0.64348236]
[1755041714579,0.17498471,120020.0,120010.0,0.64348236]
[1755041714993,0.17498471,120020.0,120010.0,0.81013513]
[1755041715372,0.17498471,120020.0,120010.0,0.64348236]
[1755041716823,0.17498471,120020.0,120010.0,0.81013513]
[1755041717972,0.17498471,120020.0,120010.0,0.64348236]
[1755041718459,0.17498471,120020.0,120010.0,0.68229513]
[1755041718691,0.16661112,120040.0,120030.0,0.66662501]
[1755041718867,0.16661112,120040.0,120030.0,0.79953501]
[1755041719073,0.6780031,120050.0,120040.0,0.2]
[1755041719074,0.25928924,120050.0,120040.0,0.2]
[1755041719279,0.6801031,120050.0,120040.0,0.52954]
[1755041719745,0.69755212,120050.0,120040.0,0.53271]
[1755041719962,0.63070441,120050.0,120040.0,0.53319659]
[1755041720331,0.17499251,120050.0,120040.0,0.69980771]
[1755041720546,0.17499251,120050.0,120040.0,0.53319659]
[1755041720746,0.17499251,120050.0,120040.0,0.40543659]
[1755041720948,0.17599251,120050.0,120040.0,0.69980771]
[1755041723375,0.16759725,120050.0,120040.0,0.57204771]
[1755041723590,0.001,120050.0,120040.0,0.70040771]
[1755041723793,0.001,120050.0,120040.0,0.78313096]
[1755041724398,0.001,120050.0,120040.0,0.78317096]
[1755041725226,0.16759725,120050.0,120040.0,0.78317096]
[1755041727399,0.16759725,120050.0,120040.0,0.78313096]
[1755041728725,0.16759725,120050.0,120040.0,1.11630096]
[1755041729566,0.16759725,120050.0,120040.0,0.94968984]
[1755041730291,0.16759725,120050.0,120040.0,0.82136984]
[1755041730499,0.60586013,120050.0,120040.0,0.94651984]
[1755041730718,0.60586013,120050.0,120040.0,0.81819984]
[1755041730930,0.60586013,120050.0,120040.0,0.94957984]
[1755041733645,0.60586013,120050.0,120040.0,0.94647984]
[1755041733896,0.60586013,120050.0,120040.0,0.94957984]
[1755041734349,0.60586013,120050.0,120040.0,0.93547659]
[1755041734586,0.62634915,120050.0,120040.0,1.01173659]
[1755041735320,0.62634915,120050.0,120040.0,0.88349659]
[1755041735554,0.62634915,120050.0,120040.0,1.01169659]
[1755041737822,0.62634915,120050.0,120040.0,0.88349659]
[1755041738034,0.62634915,120050.0,120040.0,1.01165659]
[1755041738476,0.18714627,120050.0,120040.0,1.01368659]
[1755041738664,0.60376013,120050.0,120040.0,1.01678659]
[1755041739365,0.60376013,120050.0,120040.0,1.05523771]
[1755041739585,0.60376013,120050.0,120040.0,1.38339771]
[1755041739783,0.60376013,120050.0,120040.0,1.21678659]
[1755041740018,0.60376013,120050.0,120040.0,1.38339771]
[1755041740286,0.16759725,120050.0,120040.0,1.38339771]
[1755041740506,0.16759725,120050.0,120040.0,1.38335771]
[1755041740709,0.001,120050.0,120040.0,1.33796096]
[1755041740900,0.001,120050.0,120040.0,1.46612096]
[1755041741572,0.001,120050.0,120040.0,1.33796096]
[1755041741825,0.16759725,120050.0,120040.0,1.46612096]
[1755041742049,0.16659725,120050.0,120040.0,1.46612096]
[1755041742495,0.16659725,120050.0,120040.0,1.46912096]
[1755041743875,0.16659725,120050.0,120040.0,1.47112096]
[1755041745579,0.16659725,120050.0,120040.0,1.47104096]
[1755041749869,0.19242339,120060.0,120050.0,0.15]
[1755041750121,0.19452339,120060.0,120050.0,0.28212492]
[1755041750351,0.63068627,120060.0,120050.0,0.27796]
[1755041751030,0.19452339,120060.0,120050.0,0.27999]
[1755041751166,0.63068627,120060.0,120050.0,0.44758725]
[1755041751392,0.63068627,120060.0,120050.0,0.28099]
[1755041751605,0.19452339,120060.0,120050.0,0.28099]
[1755041751814,0.63068627,120060.0,120050.0,0.28099]
[1755041752703,0.63068627,120060.0,120050.0,0.28299]
[1755041754068,0.63068627,120060.0,120050.0,0.28096]
[1755041756366,0.63068627,120060.0,120050.0,0.28299]
[1755041756576,0.63068627,120060.0,120050.0,0.61928]
[1755041757485,0.63068627,120060.0,120050.0,0.61618]
[1755041757733,0.62858627,120060.0,120050.0,0.61928]
[1755041758164,0.63068627,120060.0,120050.0,0.61928]
[1755041758368,0.19452339,120060.0,120050.0,0.61618]
[1755041758606,0.63068627,120060.0,120050.0,0.61618]
[1755041761061,0.63068627,120060.0,120050.0,0.48822]
[1755041761580,0.63068627,120060.0,120050.0,0.61602]
[1755041762206,0.63068627,120060.0,120050.0,0.61399]
[1755041762377,0.63068627,120060.0,120050.0,0.48619]
[1755041762543,0.63068627,120060.0,120050.0,0.61395]
[1755041762748,0.19452339,120060.0,120050.0,0.61395]
[1755041762960,0.63068627,120060.0,120050.0,0.61395]
[1755041767592,0.63068627,120060.0,120050.0,0.81367]
[1755041768450,0.63068627,120060.0,120050.0,0.68591]
[1755041768659,0.63068627,120060.0,120050.0,0.81359]
[1755041769399,0.63068627,120060.0,120050.0,0.81566]
[1755041769624,0.63068627,120060.0,120050.0,0.81859]
[1755041773523,0.19452339,120060.0,120050.0,0.81859]
[1755041773729,0.63068627,120060.0,120050.0,0.81859]
[1755041774737,1.17504137,120060.0,120050.0,0.81859]
[1755041774947,0.68478238,120060.0,120050.0,0.81859]
[1755041775365,1.17504137,120060.0,120050.0,0.81859]
[1755041776266,1.17504137,120060.0,120050.0,0.81566]
[1755041789338,0.19452339,120060.0,120050.0,0.81566]
[1755041789559,1.17504137,120060.0,120050.0,0.81566]
[1755041791122,0.19452339,120060.0,120050.0,0.81566]
[1755041791292,1.17504137,120060.0,120050.0,0.81566]
[1755041792202,1.17504137,120060.0,120050.0,0.68798]
[1755041792424,1.17811137,120060.0,120050.0,0.68591]
[1755041792644,1.17811137,120060.0,120050.0,0.81327]
[1755041792887,1.17811137,120060.0,120050.0,0.68591]
[1755041793101,1.17811137,120060.0,120050.0,0.81327]
[1755041793317,1.17811137,120060.0,120050.0,0.68591]
[1755041793530,1.17811137,120060.0,120050.0,1.01327]
[1755041793755,1.17811137,120060.0,120050.0,0.88591]
[1755041793971,1.17811137,120060.0,120050.0,1.01227]
[1755041794192,1.75109361,120060.0,120050.0,0.53491]
[1755041794407,1.75109361,120060.0,120050.0,0.66327]
[1755041794618,1.26083462,120060.0,120050.0,0.53391]
[1755041794803,1.26183462,120060.0,120050.0,0.66027]
[1755041795220,1.28582062,120060.0,120050.0,0.66027]
[1755041795426,1.28582062,120060.0,120050.0,0.53291]
[1755041795611,1.77807961,120060.0,120050.0,0.66027]
[1755041796075,1.77807961,120060.0,120050.0,0.53291]
[1755041796284,1.77807961,120060.0,120050.0,0.66027]
[1755041796686,0.74331169,120060.0,120050.0,0.33319]
[1755041796894,0.16659725,120050.0,120040.0,0.00048659]
[1755041797030,1.14085762,120050.0,120040.0,0.20020659]
[1755041797255,1.14392762,120050.0,120040.0,0.32756659]
[1755041798064,0.27190952,120050.0,120040.0,0.32756659]
[1755041798266,1.14392762,120050.0,120040.0,0.20020659]
[1755041798466,1.14392762,120050.0,120040.0,0.32756659]
[1755041798874,1.14492762,120050.0,120040.0,0.32756659]
[1755041801598,0.70891857,120050.0,120040.0,0.32756659]
[1755041803680,0.75889857,120050.0,120040.0,0.32756659]
[1755041803867,0.70891857,120050.0,120040.0,0.32756659]
[1755041807365,0.27290952,120050.0,120040.0,0.32756659]
[1755041807565,0.70891857,120050.0,120040.0,0.32756659]
[1755041811778,1.14492762,120050.0,120040.0,0.32756659]
[1755041812732,0.27290952,120050.0,120040.0,0.32756659]
[1755041813154,0.70891857,120050.0,120040.0,0.32756659]
[1755041813373,0.70584857,120050.0,120040.0,0.32756659]
[1755041813594,0.26983952,120050.0,120040.0,0.32756659]
[1755041813814,0.70584857,120050.0,120040.0,0.32756659]
[1755041815873,0.26983952,120050.0,120040.0,0.32756659]
[1755041816084,0.70584857,120050.0,120040.0,0.32756659]
[1755041816299,0.26983952,120050.0,120040.0,0.32972659]
[1755041816539,0.62105532,120050.0,120040.0,0.20537659]
[1755041816757,0.67539346,120050.0,120040.0,0.53337659]
[1755041816971,0.18504627,120050.0,120040.0,0.53337659]
[1755041817179,0.67539346,120050.0,120040.0,0.53337659]
[1755041817397,0.67539346,120050.0,120040.0,0.40537659]
[1755041817606,0.67539346,120050.0,120040.0,0.53337659]
[1755041818607,0.67539346,120050.0,120040.0,0.53377659]
[1755041819751,0.25189398,120050.0,120040.0,0.53433659]
[1755041819931,0.67539346,120050.0,120040.0,0.53433659]
[1755041820171,0.67539346,120050.0,120040.0,0.53437659]
[1755041820802,0.62095268,120050.0,120040.0,0.53437659]
[1755041821966,0.62095268,120050.0,120040.0,0.53433659]
[1755041827438,0.18504627,120050.0,120040.0,0.53433659]
[1755041827635,0.62095268,120050.0,120040.0,0.53433659]
[1755041830848,0.62290268,120050.0,120040.0,0.53433659]
[1755041832481,0.62095268,120050.0,120040.0,0.53433659]
[1755041836752,0.62271268,120050.0,120040.0,0.53433659]
[1755041840742,0.67722339,120050.0,120040.0,0.53433659]
[1755041848731,0.67722339,120050.0,120040.0,0.40537659]
[1755041848904,0.67722339,120050.0,120040.0,0.53369659]
[1755041850223,0.67722339,120050.0,120040.0,0.40537659]
[1755041850455,0.67722339,120050.0,120040.0,0.53369659]
[1755041852588,0.67722339,120050.0,120040.0,0.40537659]
[1755041852805,0.67722339,120050.0,120040.0,0.53357659]
[1755041853856,0.67546339,120050.0,120040.0,0.53353659]
[1755041854511,0.67546339,120050.0,120040.0,0.55537659]
[1755041854718,0.67546339,120050.0,120040.0,0.68361659]
[1755041855141,0.67546339,120050.0,120040.0,0.85022771]
[1755041855396,0.67546339,120050.0,120040.0,0.68361659]
[1755041855613,0.67446339,120050.0,120040.0,0.68361659]
[1755041856254,0.67446339,120050.0,120040.0,0.68461659]
[1755041856746,0.68620649,120060.0,120050.0,0.35]
[1755041856971,0.21323839,120060.0,120050.0,0.48023]
[1755041857203,0.68620649,120060.0,120050.0,0.52181725]
[1755041857419,0.68620649,120060.0,120050.0,0.65001725]
[1755041857635,0.19578937,120060.0,120050.0,0.65001725]
[1755041857858,0.68620649,120060.0,120050.0,0.52181725]
[1755041858087,0.68620649,120060.0,120050.0,0.65001725]
[1755041858312,0.68620649,120060.0,120050.0,0.48342]
[1755041858751,0.68620649,120060.0,120050.0,0.65001725]
[1755041859214,0.19678937,120060.0,120050.0,0.65001725]
[1755041859427,0.68720649,120060.0,120050.0,0.7327405]
[1755041859888,0.68620649,120060.0,120050.0,0.7327405]
[1755041860584,0.020815,120060.0,120050.0,0.7327405]
[1755041860773,0.51123212,120060.0,120050.0,0.7327405]
[1755041861026,0.51123212,120060.0,120050.0,0.6055405]
[1755041861251,0.51123212,120060.0,120050.0,0.7341805]
[1755041861479,0.020815,120060.0,120050.0,0.7341805]
[1755041861918,0.020815,120060.0,120050.0,0.75916307]
[1755041864159,0.51123212,120060.0,120050.0,0.75916307]
[1755041864412,0.020815,120060.0,120050.0,0.75916307]
[1755041866498,0.020815,120060.0,120050.0,1.09230307]
[1755041867318,0.020815,120060.0,120050.0,1.11728207]
[1755041868693,0.020815,120060.0,120050.0,0.98868207]
[1755041868895,0.51123212,120060.0,120050.0,1.11720207]
[1755041869776,0.67781549,120060.0,120050.0,1.11720207]
[1755041870196,0.67781549,120060.0,120050.0,0.98868207]
[1755041870322,0.67995549,120060.0,120050.0,0.95064482]
[1755041870528,0.67995549,120060.0,120050.0,0.94745482]
[1755041870735,0.67995549,120060.0,120050.0,0.95064482]
[1755041871220,1.17037261,120060.0,120050.0,0.82208482]
[1755041871442,1.17037261,120060.0,120050.0,0.59188225]
[1755041871695,1.17335261,120060.0,120050.0,0.61282]
[1755041871922,1.19080163,120060.0,120050.0,0.96278]
[1755041876250,1.19080163,120060.0,120050.0,0.48418]
[1755041876465,1.19080163,120060.0,120050.0,0.68418]
[1755041876677,1.19080163,120060.0,120050.0,0.81266]
[1755041880792,1.19080163,120060.0,120050.0,0.68418]
[1755041881039,1.19080163,120060.0,120050.0,0.81254]
[1755041882069,1.19080163,120060.0,120050.0,0.68418]
[1755041882266,1.19080163,120060.0,120050.0,0.81254]
[1755041882488,1.19080163,120060.0,120050.0,0.88418]
[1755041882676,1.19080163,120060.0,120050.0,1.0125]
[1755041883996,1.19080163,120060.0,120050.0,0.8125]
[1755041885288,1.19080163,120060.0,120050.0,0.68418]
[1755041885487,1.19080163,120060.0,120050.0,0.81246]
[1755041885862,1.19080163,120060.0,120050.0,1.01222]
[1755041886514,1.19080163,120060.0,120050.0,0.8839]
[1755041886749,1.19080163,120060.0,120050.0,1.01218]
[1755041890296,1.18782163,120060.0,120050.0,1.01416]
[1755041890513,1.18782163,120060.0,120050.0,1.01731]
[1755041890696,1.18782163,120060.0,120050.0,1.01416]
[1755041891139,1.18782163,120060.0,120050.0,1.01218]
[1755041891346,1.19087163,120060.0,120050.0,1.01218]
[1755041893130,1.18568163,120060.0,120050.0,1.01731]
[1755041893558,1.18778163,120060.0,120050.0,1.01731]
[1755041893974,1.18778163,120060.0,120050.0,1.01416]
[1755041895445,1.18778163,120060.0,120050.0,1.01731]
[1755041899093,1.18778163,120060.0,120050.0,1.01218]
[1755041899711,1.19083163,120060.0,120050.0,1.01218]
[1755041903396,1.18778163,120060.0,120050.0,1.01416]
[1755041906496,1.18778163,120060.0,120050.0,1.01218]
[1755041907161,1.18778163,120060.0,120050.0,0.8839]
[1755041907374,1.18778163,120060.0,120050.0,1.0117]
[1755041907606,1.18778163,120060.0,120050.0,0.8839]
[1755041907822,1.18778163,120060.0,120050.0,1.01174]
[1755041908252,1.18778163,120060.0,120050.0,1.01372]
[1755041910046,0.20694739,120060.0,120050.0,1.01372]
[1755041910263,1.18778163,120060.0,120050.0,1.01372]
[1755041911994,0.67781549,120060.0,120050.0,1.03889]
[1755041912217,0.67781549,120060.0,120050.0,1.16661]
[1755041912423,0.67781549,120060.0,120050.0,1.03889]
[1755041912641,0.67781549,120060.0,120050.0,1.16661]
[1755041914159,1.16823261,120060.0,120050.0,1.16661]
[1755041916249,0.67781549,120060.0,120050.0,1.16661]
[1755041919601,1.16823261,120060.0,120050.0,1.16661]
[1755041920512,0.18739837,120060.0,120050.0,1.16661]
[1755041920728,1.16823261,120060.0,120050.0,1.16661]
[1755041921361,1.16823261,120060.0,120050.0,1.03889]
[1755041921588,1.16823261,120060.0,120050.0,1.16653]
[1755041921802,0.67781549,120060.0,120050.0,1.03889]
[1755041922017,0.18739837,120060.0,120050.0,1.16653]
[1755041922244,0.67781549,120060.0,120050.0,1.16653]
[1755041922701,0.67781549,120060.0,120050.0,1.16657]
[1755041922918,0.67781549,120060.0,120050.0,1.03889]
[1755041923322,0.18739837,120060.0,120050.0,1.16665]
[1755041923534,0.67781549,120060.0,120050.0,1.16665]
[1755041923731,0.18739837,120060.0,120050.0,1.4159705]
[1755041923944,0.18739837,120060.0,120050.0,1.2882105]
[1755041924161,0.18739837,120060.0,120050.0,1.4159305]
[1755041924395,0.020815,120060.0,120050.0,1.2882105]
[1755041924616,0.020815,120060.0,120050.0,1.4159305]
[1755041924900,0.020815,120060.0,120050.0,1.4409095]
[1755041925109,0.020815,120060.0,120050.0,1.537785]
[1755041925326,0.020815,120060.0,120050.0,1.688375]
[1755041925537,0.020815,120060.0,120050.0,2.470587]
[1755041926197,0.020815,120060.0,120050.0,2.469587]
[1755041926407,0.020815,120060.0,120050.0,2.470587]
[1755041927562,0.020815,120060.0,120050.0,2.342827]
[1755041927803,0.020815,120060.0,120050.0,2.472547]
[1755041930069,0.020815,120060.0,120050.0,2.344827]
[1755041930307,0.020815,120060.0,120050.0,2.472507]
[1755041931716,0.020815,120060.0,120050.0,2.344827]
[1755041931867,0.020815,120060.0,120050.0,2.472507]
[1755041933126,0.020815,120060.0,120050.0,2.137945]
[1755041936672,0.020815,120060.0,120050.0,2.115035]
[1755041940370,0.020815,120060.0,120050.0,2.074135]
[1755041942257,0.18739837,120060.0,120050.0,1.539785]
[1755041942473,0.67997549,120060.0,120050.0,1.36819775]
[1755041942687,1.17333261,120060.0,120050.0,1.14321875]
[1755041942883,1.17333261,120060.0,120050.0,0.92081875]
[1755041943101,1.17333261,120060.0,120050.0,1.27081875]
[1755041943434,1.17333261,120060.0,120050.0,1.1635]
[1755041943970,0.68291549,120060.0,120050.0,1.1635]
[1755041944289,0.68291549,120060.0,120050.0,1.0359]
[1755041944512,0.68291549,120060.0,120050.0,1.1635]
[1755041944733,0.18739837,120060.0,120050.0,1.2902405]
[1755041945171,0.18955837,120060.0,120050.0,1.24829325]
[1755041945390,0.18955837,120060.0,120050.0,1.44008035]
[1755041945834,0.18955837,120060.0,120050.0,1.44303035]
[1755041949189,0.18955837,120060.0,120050.0,1.31543035]
[1755041949453,0.020815,120060.0,120050.0,1.44303035]
[1755041951050,0.18739837,120060.0,120050.0,1.44303035]
[1755041953638,0.020815,120060.0,120050.0,1.44303035]
[1755041955190,0.020815,120060.0,120050.0,1.46800835]
[1755041962128,0.020815,120060.0,120050.0,1.54040835]
[1755041962339,0.020815,120060.0,120050.0,1.66800835]
[1755041962554,0.020815,120060.0,120050.0,0.98182835]
[1755041963035,0.020815,120060.0,120050.0,1.31500835]
[1755041964418,0.020815,120060.0,120050.0,2.34036235]
[1755041965058,0.020815,120060.0,120050.0,2.69052235]
[1755041965271,0.020815,120060.0,120050.0,2.50287835]
[1755041969427,0.020815,120060.0,120050.0,2.43263035]
[1755041969850,0.020815,120060.0,120050.0,2.19638735]
[1755041971080,0.020815,120060.0,120050.0,2.06862735]
[1755041971281,0.020815,120060.0,120050.0,2.19638735]
[1755041972554,0.020815,120060.0,120050.0,2.19634735]
[1755041973805,0.020815,120060.0,120050.0,2.06862735]
[1755041974013,0.020815,120060.0,120050.0,2.19634735]
[1755041978530,0.020815,120060.0,120050.0,2.06862735]
[1755041978753,0.020815,120060.0,120050.0,2.19622735]
[1755041982994,0.00349313,120060.0,120050.0,2.06862735]
[1755041983186,0.00349313,120060.0,120050.0,2.19622735]
[1755041983397,0.00349313,120060.0,120050.0,2.22019211]
[1755041983963,0.00349313,120060.0,120050.0,2.09259211]
[1755041984175,0.00349313,120060.0,120050.0,2.22019211]
[1755041984379,0.00349313,120060.0,120050.0,2.30776211]
[1755041984601,0.00349313,120060.0,120050.0,2.22019211]
[1755041985465,0.00349313,120060.0,120050.0,2.22419211]
[1755041988719,0.00349313,120060.0,120050.0,2.09659211]
[1755041988945,0.00349313,120060.0,120050.0,2.22415211]
[1755041990271,0.00349313,120060.0,120050.0,2.20018735]
[1755041995298,0.00349313,120060.0,120050.0,2.22415211]
[1755041995943,0.00349313,120060.0,120050.0,2.09659211]
[1755041996154,0.00349313,120060.0,120050.0,2.22415211]
[1755041998328,0.00349313,120060.0,120050.0,2.09659211]
[1755041998547,0.00349313,120060.0,120050.0,2.22415211]
[1755042009996,0.00349313,120060.0,120050.0,2.32795211]
[1755042011175,0.00349313,120060.0,120050.0,2.20039211]
[1755042011343,0.00349313,120060.0,120050.0,2.32795211]
[1755042013703,0.00349313,120060.0,120050.0,2.30398735]
[1755042015631,0.00349313,120060.0,120050.0,2.32795211]
[1755042016755,0.00349313,120060.0,120050.0,2.30398735]
[1755042016973,0.00349313,120060.0,120050.0,2.32795211]
[1755042024426,0.00349313,120060.0,120050.0,2.30398735]
[1755042026876,0.00349313,120060.0,120050.0,2.32791211]
[1755042030526,0.00349313,120060.0,120050.0,2.17791211]
[1755042032181,0.00349313,120060.0,120050.0,2.15394735]
[1755042033442,0.00349313,120060.0,120050.0,2.02642735]
[1755042033648,0.00349313,120060.0,120050.0,2.15394735]
[1755042034685,0.00349313,120060.0,120050.0,2.17791211]
[1755042035094,0.00349313,120060.0,120050.0,2.15394735]
[1755042036353,0.00349313,120060.0,120050.0,2.02642735]
[1755042036558,0.00349313,120060.0,120050.0,2.15394735]
[1755042037376,0.00349313,120060.0,120050.0,2.02642735]
[1755042037581,0.00349313,120060.0,120050.0,2.15394735]
[1755042040382,0.00349313,120060.0,120050.0,2.24155735]
[1755042040649,0.00349313,120060.0,120050.0,2.15394735]
[1755042042090,0.00863313,120060.0,120050.0,2.12520635]
[1755042042295,0.00863313,120060.0,120050.0,2.01360035]
[1755042042501,0.00564313,120060.0,120050.0,2.01360035]
[1755042042740,0.00863313,120060.0,120050.0,2.01360035]
[1755042047189,0.00863313,120060.0,120050.0,1.90980035]
[1755042048474,0.00564313,120060.0,120050.0,1.90980035]
[1755042049172,0.00564313,120060.0,120050.0,1.91194035]
[1755042049812,0.00349313,120060.0,120050.0,1.91511035]
[1755042050018,0.00349313,120060.0,120050.0,1.91507035]
[1755042050241,0.00564313,120060.0,120050.0,1.91507035]
[1755042052557,0.00215,120060.0,120050.0,1.91507035]
[1755042053338,0.24171743,120090.0,120080.0,0.7]
[1755042053551,0.73374885,120090.0,120080.0,1.24331325]
[1755042053970,0.00514,120090.0,120080.0,1.28238887]
[1755042054189,0.00514,120090.0,120080.0,1.40986887]
[1755042054612,0.00514,120090.0,120080.0,1.41001479]
[1755042055248,0.00614,120090.0,120080.0,1.41001479]
[1755042056772,0.00614,120090.0,120080.0,1.60965479]
[1755042057955,0.00614,120090.0,120080.0,1.61065479]
[1755042058160,0.00614,120090.0,120080.0,1.48317479]
[1755042058380,0.00614,120090.0,120080.0,1.61065479]
[1755042058945,0.00514,120090.0,120080.0,1.61065479]
[1755042060339,0.00514,120090.0,120080.0,1.61898109]
[1755042060985,0.00514,120090.0,120080.0,1.64395309]
[1755042063568,0.00215,120090.0,120080.0,1.64395309]
[1755042066147,0.00215,120090.0,120080.0,1.64599309]
[1755042066366,0.00215,120090.0,120080.0,1.64907309]
[1755042067163,0.00215,120090.0,120080.0,1.64599309]
[1755042067616,0.00215,120090.0,120080.0,1.64907309]
[1755042068303,0.00127,120090.0,120080.0,1.64907309]
[1755042068515,0.00127,120090.0,120080.0,1.64903309]
[1755042068731,0.65961,120100.0,120090.0,0.16654176]
[1755042068944,0.66163,120100.0,120090.0,0.71186678]
[1755042069156,0.66163,120100.0,120090.0,0.70978501]
[1755042069834,0.00522,120100.0,120090.0,0.70978501]
[1755042070248,0.49510142,120100.0,120090.0,0.73475701]
[1755042070458,0.49610142,120100.0,120090.0,0.73475701]
[1755042071304,0.49610142,120100.0,120090.0,0.93439701]
[1755042072134,0.49290142,120100.0,120090.0,0.93439701]
[1755042072551,0.65942931,120100.0,120090.0,0.93439701]
[1755042072814,0.66261931,120100.0,120090.0,0.93439701]
[1755042073731,0.49609142,120100.0,120090.0,0.93439701]
[1755042074147,0.49290142,120100.0,120090.0,0.93439701]
[1755042074324,0.00302,120100.0,120090.0,0.93439701]
[1755042074476,0.49290142,120100.0,120090.0,0.93439701]
[1755042077587,0.16954789,120100.0,120090.0,0.93439701]
[1755042077994,0.65942931,120100.0,120090.0,0.80695701]
[1755042078196,0.65942931,120100.0,120090.0,0.93439701]
[1755042078421,0.16954789,120100.0,120090.0,0.93439701]
[1755042078845,0.00302,120100.0,120090.0,0.93439701]
[1755042079042,0.49290142,120100.0,120090.0,0.93439701]
[1755042079243,0.49290142,120100.0,120090.0,1.93439701]
[1755042079827,0.65942931,120100.0,120090.0,1.93439701]
[1755042080234,0.49290142,120100.0,120090.0,1.93439701]
[1755042080443,0.65942931,120100.0,120090.0,1.93439701]
[1755042081993,0.65942931,120100.0,120090.0,1.80695701]
[1755042082347,0.65942931,120100.0,120090.0,1.93439701]